[Event "85th Tata Steel Challengers 2023"]
[Site "Wijk aan Zee"]
[Date "2023.01.21"]
[Round "7.4"]
[White "Beerdsen, Thomas"]
[Black "Mishra, Abhimanyu"]
[Result "1-0"]
[ECO "B99"]
[WhiteElo "2515"]
[BlackElo "2559"]
[Annotator "TA"]
[PlyCount "115"]
[EventDate "2023.01.10"]
[EventType "tourn"]
[EventCountry "NED"]
[SourceTitle "playchess.com"]
[Source "ChessBase"]
[SourceQuality "1"]
[TimeControl "40/6000+30:30/3000+30:900+30"]

{[%evp 22,115,47,53,50,47,48,61,52,0,0,0,0,0,40,29,25,22,47,21,66,92,162,154,293,293,271,271,262,238,386,379,379,177,187,184,216,182,167,126,125,125,127,102,116,106,97,105,284,277,277,233,469,447,461,466,489,0,336,0,471,493,543,416,518,341,506,476,477,472,461,416,493,488,491,488,475,441,489,370,833,830,847,782,806,799,2114,2003,1670,1555,29965,29964,29967,29968,29981,762]} 1. e4 {[%emt 0:00:04]} c5 {[%emt 0:00:07]} 2. Nf3 {[%emt 0:00:08]} d6 {[%emt 0:00:12]} 3. d4 {[%emt 0:00:07]} cxd4 {[%emt 0:00:07]} 4. Nxd4 {[%emt 0:00:06]} Nf6 {[%emt 0:00:22]} 5. Nc3 {[%emt 0:00:06]} a6 {[%emt 0:00:26]} 6. Bg5 {[%emt 0:00:16]} e6 {[%emt 0:00:34]} 7. f4 {[%emt 0:00:11]} Be7 {[%emt 0:00:17]} 8. Qf3 {[%emt 0:00:12]} Qc7 {[%emt 0:00:18]} 9. O-O-O {[%emt 0:00:11]} Nbd7 {[%emt 0:00:41]} 10. g4 {[%emt 0:00:14][%cal Bg2g4,Bg4g5][%mdl 32]} h6 {[%emt 0:00:37]} 11. Bxf6 {[%emt 0:00:11]} Bxf6 {[%emt 0:00:30]} 12. h4 {[%emt 0:00:12]} Nb6 {[%emt 0:00:29] B99: Sicilian Najdorf: 6 Bg5 e6 7 f4 Be7 8 Qf3 Qc7 9 0-0-0 Nbd7.} 13. Be2 {[%emt 0:00:13]} Bd7 {[%emt 0:01:34]} 14. g5 {[%emt 0:00:07]} Be7 {[%emt 0:00:13] [#] White is slightly better.} 15. a4 $146 {[%emt 0:00:06]} ({Predecessor:} 15. Rhg1 hxg5 16. hxg5 g6 17. f5 e5 18. Nb3 gxf5 19. exf5 O-O-O 20. Na5 Kb8 21. Qe4 {0-1 Kaufman,R (2209)-De Firmian,N (2464) Banff op 2022 (4)}) 15... Nxa4 $11 {[%emt 0:24:05]} 16. Nxa4 {[%emt 0:00:08]} Bxa4 {[%emt 0:00:08]} 17. Rd3 {[%emt 0:00:06]} Qc5 {[%emt 0:16:00][%cal Rh6g5]} 18. Rhd1 $1 {[%emt 0:13:30]} Bd7 {[%emt 0:08:24] [#]} 19. e5 $1 {[%emt 0:28:34]} d5 {[%emt 0:08:10]} (19... dxe5 $2 20. Nb3 (20. Qxb7 Qa7 $17) 20... Bc6 21. Nxc5 $18) 20. f5 {[%emt 0:08:18]} hxg5 {[%emt 0:04:35]} 21. fxe6 {[%emt 0:04:40]} fxe6 {[%emt 0:04:10] [#]} (21... Bxe6 $16 22. Nxe6 fxe6) 22. Rf1 $1 $18 {[%emt 0:09:09] Qf7+ would be deadly.} Rf8 {[%emt 0:12:47] Against Qf7+} (22... gxh4 $2 23. Qf7+ Kd8 24. Nxe6+ Bxe6 25. Qxe6 $18) (22... Rc8 $16) 23. Qh5+ {[%emt 0:00:21]} Kd8 {[%emt 0:00:02]} 24. Rxf8+ {[%emt 0:01:04]} Bxf8 {[%emt 0:00:03]} 25. Bg4 {[%emt 0:03:23]} Rc8 {[%emt 0:14:46]} (25... Qe7 $142 26. Rf3 Kc8 27. Nxe6 (27. Qxg5 Kc7 $16) (27. hxg5 Kb8 $16) 27... Bxe6) 26. Bxe6 {[%emt 0:06:47]} (26. Nxe6+ $2 Bxe6 27. Bd1 gxh4 28. Qxh4+ Be7 $19) (26. Qxg5+ Qe7 $16) 26... Qe7 {[%emt 0:00:52]} 27. Bxd5 {[%emt 0:09:35]} (27. Qxg5 Qxg5+ 28. hxg5 Bxe6 29. Nxe6+ Ke7 $14) (27. Bxd7 $142 Qxd7 28. Rf3 (28. hxg5 Kc7 $16)) 27... Kc7 {[%emt 0:01:18]} 28. e6 {[%emt 0:03:57]} (28. Qxg5 $6 Qxg5+ 29. hxg5 Re8 $16) (28. hxg5 $6 Qxe5 29. Qf7 Qe1+ 30. Rd1 Qe7 $14) 28... Ba4 {[%emt 0:02:30]} 29. Rf3 {[%emt 0:02:37] Threatens to win with Rf7.} (29. Qxg5 Qxg5+ 30. hxg5 Be7 $14) (29. hxg5 Kb8) 29... Qb4 {[%emt 0:03:32][%cal Rb4e1]} 30. c3 {[%emt 0:04:42]} (30. Rf7+ Kd6 31. Qd1 (31. Bxb7 Qe1+ 32. Qd1 Qxd1+ 33. Kxd1 Rc4 $11) 31... Kxd5) 30... Kb8 {[%emt 0:01:21]} 31. Kb1 $36 {[%emt 0:03:13][%mdl 2048] Black is under strong pressure. The board is on fire.} Qd6 {[%emt 0:04:18]} 32. Qxg5 {[%emt 0:01:09] Black must now prevent Rf7. White is much more active.} Be7 {[%emt 0:00:06]} 33. Qg3 {[%emt 0:06:24]} (33. Qxg7 Qxd5 34. Qxe7 Bb3 $11) 33... Qxg3 {[%emt 0:01:01]} 34. Rxg3 {[%emt 0:00:05]} Bxh4 $2 {[%emt 0:01:44]} (34... Bf6 $16 {was called for.}) 35. Rxg7 {[%emt 0:00:06]} Rc7 {[%emt 0:00:05]} 36. Rg8+ {[%emt 0:02:05]} Ka7 $2 {[%emt 0:00:58]} (36... Rc8 37. Rg7 Rc5) 37. Nf5 {[%emt 0:01:03]} Bf6 {[%emt 0:00:34]} 38. Rf8 {[%emt 0:02:33] Repels Bb5} Bg5 {[%emt 0:00:31]} 39. Rg8 {[%emt 0:01:54]} Bf6 {[%emt 0:00:37] A strong pair of Bishops.} 40. Rf8 {[%emt 0:01:21] Inhibits Bb5.} (40. c4 $142) 40... Bg5 $1 {[%emt 0:00:41]} 41. Nd6 {[%emt 0:10:08]} a5 {[%emt 0:20:12]} 42. Rf7 {[%emt 0:13:31]} Kb8 {[%emt 0:04:11]} 43. Nxb7 {[%emt 0:00:26]} ({Not} 43. Bxb7 Be7 $16) 43... Bb3 {[%emt 0:01:45]} (43... Bh6 {was worth a try.} 44. Rf6 (44. Nxa5 Rc5 $18) 44... Bg7) 44. Rf5 {[%emt 0:02:37]} ({Weaker is} 44. Bxb3 Rxb7 45. Rf5 Be7 $18) 44... Be7 {[%emt 0:03:36]} 45. Nxa5 {[%emt 0:00:10]} Ba4 {[%emt 0:00:10]} 46. Be4 {[%emt 0:03:09]} Ka7 {[%emt 0:00:50]} 47. Bc2 {[%emt 0:01:27]} Be8 {[%emt 0:00:28]} 48. Nb3 {[%emt 0:00:08]} Kb6 {[%emt 0:00:16]} 49. Nd4 {[%emt 0:00:21]} Bc5 {[%emt 0:00:16]} 50. Rd5 {[%emt 0:00:52]} Rg7 $2 {[%emt 0:00:24]} (50... Re7 51. b4 Bxd4) 51. b4 {[%emt 0:00:22]} Be7 {[%emt 0:00:08]} 52. Nf5 {[%emt 0:00:38]} Rg1+ {[%emt 0:00:03]} 53. Rd1 {[%emt 0:00:16]} Rxd1+ {[%emt 0:00:06]} 54. Bxd1 {[%emt 0:00:04]} Bf6 {[%emt 0:00:22]} 55. Kb2 {[%emt 0:00:16] White wants to mate with Nd6.} Bc6 {[%emt 0:00:06]} 56. Bh5 {[%emt 0:00:20] White mates.} Kb5 {[%emt 0:00:23]} 57. e7 {[%emt 0:00:39]} Kc4 {[%emt 0:00:07]} 58. Be2+ {[%emt 0:00:09] Artfully played by Beerdsen.   Weighted Error Value: White=0.44/Black=0.46} ({Inferior is} 58. e8=R Bxc3+ 59. Kc2 Ba4+ 60. Kc1 Bxe8 $11) 1-0

[Event "85th Tata Steel Challengers 2023"]
[Site "Wijk aan Zee"]
[Date "2023.01.21"]
[Round "7.5"]
[White "Tabatabaei, M. Amin"]
[Black "L'Ami, Erwin"]
[Result "1-0"]
[ECO "E04"]
[WhiteElo "2686"]
[BlackElo "2627"]
[Annotator "TA"]
[PlyCount "121"]
[EventDate "2023.01.10"]
[EventType "tourn"]
[EventCountry "NED"]
[SourceTitle "playchess.com"]
[Source "ChessBase"]
[SourceQuality "1"]
[TimeControl "40/6000+30:30/3000+30:900+30"]

{[%evp 13,121,48,45,37,59,59,49,60,50,58,56,54,72,72,72,67,71,62,72,62,68,51,68,0,80,102,104,96,162,83,169,170,171,174,403,371,353,98,92,96,80,73,108,107,102,85,258,243,392,386,373,356,633,472,658,595,1268,0,1114,0,1089,1058,1034,119,989,997,869,406,406,0,0,0,0,0,0,0,0,0,552,551,545,526,532,487,423,421,420,402,341,51,54,79,12833,12834,12833,12833,12842,12843,12843,12843,12844,12844,12845,12845,12845,12846,12846,12847,12847,12847]} 1. d4 {[%emt 0:00:06]} d5 {[%emt 0:00:10]} 2. c4 {[%emt 0:00:08]} e6 {[%emt 0:00:11]} 3. Nf3 {[%emt 0:00:07]} Nf6 {[%emt 0:00:09]} 4. g3 {[%emt 0:00:03]} dxc4 {[%emt 0:02:59]} 5. Bg2 {[%emt 0:01:10]} Nbd7 {[%emt 0:00:16]} 6. O-O {[%emt 0:02:10]} c6 {[%emt 0:02:07]} 7. a4 {[%emt 0:04:25]} a5 {[%emt 0:06:25]} 8. Qc2 {[%emt 0:03:14] E04: Open Catalan: 5 Nf3.} b5 {[%emt 0:04:54]} 9. Ne5 {[%emt 0:15:49]} Nxe5 {[%emt 0:01:42]} 10. dxe5 {[%emt 0:00:08] White is slightly better.} Nd5 {[%emt 0:00:07]} 11. axb5 {[%emt 0:00:07]} cxb5 {[%emt 0:00:06]} 12. Nc3 {[%emt 0:04:39]} Qb6 {[%emt 0:01:37]} 13. Nxd5 {[%emt 0:00:39]} exd5 {[%emt 0:00:10]} 14. Bxd5 {[%emt 0:00:03]} Ra7 {[%emt 0:03:19]} 15. Qe4 {[%emt 0:07:52] White is more active.} Bc5 {[%emt 0:01:24]} 16. Bc6+ $1 {[%emt 0:04:36]} Bd7 {[%emt 0:01:10]} 17. Bxd7+ {[%emt 0:00:49]} Rxd7 {[%emt 0:00:11]} 18. Qg4 {[%emt 0:03:45] [#]} (18. Qa8+ $14 Rd8 19. Qxa5) 18... a4 $146 {[%emt 0:36:15]} (18... Rf8 $1 $11) ({Predecessor:} 18... Rg8 19. Bg5 a4 20. Rfd1 Qc6 21. e3 Be7 22. Bxe7 Kxe7 23. Qg5+ Ke8 24. Rd6 Rxd6 25. exd6 Qd7 26. Rd1 f5 27. Rd5 g6 28. Qf6 {1-0 Matlakov,M (2671)-Sychev,K (2489) Wch Rapid Almaty 2022 (2)}) 19. Qxg7 $16 {[%emt 0:01:56]} Rf8 {[%emt 0:01:07]} 20. Qxh7 {[%emt 0:08:22] And now Qh5 would win.} Bd4 {[%emt 0:10:13]} (20... Qg6 $16 21. Qh3 Bd4) 21. Qe4 {[%emt 0:15:12]} (21. Bf4 $18) 21... Qb7 {[%emt 0:02:49]} (21... Qe6 $16 {was called for.}) 22. Qf5 $1 $18 {[%emt 0:03:14]} (22. Qxb7 $6 Rxb7 23. h4 Bxe5 $14) 22... Qd5 {[%emt 0:03:15]} 23. Bf4 {[%emt 0:00:24]} Bxb2 $2 {[%emt 0:04:39] [#]} (23... Qe6 {was worth a try.} 24. Qh5 Bxb2) 24. Rad1 $1 {[%emt 0:02:01][%mdl 512]} Qe6 {[%emt 0:01:39]} 25. Qb1 {[%emt 0:15:30]} (25. Qh5 $1 $18 {is the precise move to win.} Bd4 26. Qf3) 25... a3 $16 {[%emt 0:01:37]} 26. Rxd7 {[%emt 0:00:05]} Qxd7 {[%emt 0:08:23]} 27. Qe4 {[%emt 0:00:05]} Rg8 {[%emt 0:03:49]} 28. Qa8+ {[%emt 0:01:30][%mdl 64] Skewer} Qd8 {[%emt 0:00:06]} 29. Qb7 {[%emt 0:00:43]} c3 $2 {[%emt 0:01:47]} (29... Rg6 $16) 30. h4 $1 $40 {[%emt 0:15:44][%mdl 128] Black is in trouble.} (30. Qxb5+ Qd7 31. Qb4 a2 $16) 30... Rg6 {[%emt 0:06:00]} (30... b4 {keeps fighting.} 31. e6 fxe6) 31. Bg5 $1 {[%emt 0:00:09]} (31. Qxb5+ Kf8 $11) 31... Rxg5 {[%emt 0:01:43]} 32. hxg5 {[%emt 0:00:05][%mdl 4096] Endgame e6 would be deadly. KQR-KQB} Qd7 {[%emt 0:00:33]} (32... Kf8 33. g6 (33. Qxb5 a2 $14) 33... fxg6) 33. Qb8+ {[%emt 0:00:35]} Ke7 {[%emt 0:00:35]} 34. Qh8 {[%emt 0:01:30][%cal Og5g6] aiming for g6!} (34. Qb6 a2 35. Qf6+ Kf8 36. Qh8+ Ke7 $18) 34... a2 {[%emt 0:04:50]} 35. Qf6+ $2 {[%emt 0:00:07]} (35. g6 $18 {White threatens g7 and mate.} fxg6 36. Qh7+ Kd8 37. Qg8+ (37. Qxg6 a1=Q $17) 37... Kc7 38. Qxa2 (38. Qxg6 $2 a1=Q $19)) 35... Ke8 $2 {[%emt 0:00:24][%mdl 8192]} (35... Kf8 $11) 36. Qh8+ {[%emt 0:00:03]} Ke7 {[%emt 0:00:02] [#]} 37. g6 $1 {[%emt 0:00:21]} fxg6 {[%emt 0:00:22]} 38. Qf6+ {[%emt 0:00:56]} Ke8 {[%emt 0:00:03] [#]} 39. e6 $1 {[%emt 0:00:30]} (39. Qxg6+ Kf8 $11) 39... Qe7 {[%emt 0:01:39]} 40. Qh8+ {[%emt 0:01:04]} (40. Qxg6+ Kf8 $11) 40... Qf8 {[%emt 0:00:06]} 41. Qh7 {[%emt 0:06:29]} (41. Qh1 $18 {White wants to mate with Rd1.} Ke7 42. Qd5) 41... Qe7 $11 {[%emt 0:10:30]} 42. Qg8+ {[%emt 0:13:54]} Qf8 {[%emt 0:00:08]} 43. Qxg6+ {[%emt 0:10:50]} Ke7 {[%emt 0:02:13]} 44. Qe4 {[%emt 0:13:19] Hoping for Qb4+.} Qe8 {[%emt 0:05:00]} 45. Qb4+ {[%emt 0:06:29]} Kf6 $2 {[%emt 0:00:42][%mdl 8192]} (45... Kxe6 $11 {and Black stays safe.} 46. Qb3+ (46. Qe4+ Kf7 $11) 46... Kd6) 46. Qd4+ $18 {[%emt 0:00:45]} Kxe6 {[%emt 0:02:51]} 47. Qe3+ {[%emt 0:00:05]} (47. Qe4+ Kf7 48. Qf4+ Kg8 $11) 47... Kf7 {[%emt 0:01:32]} 48. Qa7+ {[%emt 0:00:04]} Kf6 {[%emt 0:01:27] White must now prevent ...Qe6.} 49. Qxa2 {[%emt 0:00:02]} Qxe2 {[%emt 0:00:12]} 50. Qb3 {[%emt 0:01:44] Threatens to win with Qb4.} Ke7 {[%emt 0:07:14] [#]} 51. Qb4+ {[%emt 0:00:19]} (51. Kg2 $1 $18) 51... Kd7 $1 $14 {[%emt 0:05:00]} 52. Kg2 $1 {[%emt 0:01:15] Rh1 is the strong threat.} (52. Qc5 c2 53. Qd5+ Kc7 54. Qc5+ Kb7 55. Qd5+ Kb6 56. Qd6+ (56. Qd8+ $2 Kc5 $19) 56... Ka5 $11) 52... Qc4 $2 {[%emt 0:06:51][%mdl 8192]} (52... Qe5 $16) 53. Rd1+ $18 {[%emt 0:00:14] White is clearly winning.} Kc6 {[%emt 0:00:08]} 54. Qe7 {[%emt 0:00:44] Threatening mate with Rd6+.} c2 {[%emt 0:09:15]} 55. Rd6+ {[%emt 0:00:01]} Kc5 {[%emt 0:00:05]} 56. Rd8+ {[%emt 0:01:12]} Kb6 {[%emt 0:00:18]} 57. Rb8+ {[%emt 0:00:04]} Ka5 {[%emt 0:02:07]} 58. Ra8+ {[%emt 0:00:06]} Kb6 {[%emt 0:00:04]} 59. Qa7+ {[%emt 0:00:22]} Kc6 {[%emt 0:00:04]} 60. Rc8+ {[%emt 0:00:04]} Kd5 {[%emt 0:00:54]} 61. Qd7+ {[%emt 0:00:23][%mdl 64] Deflection. An exciting game.   Weighted Error Value: White=0.64/Black=0.82} ({Not} 61. Rxc4 Kxc4 62. Qa2+ (62. Qc7+ Kb3 $11) 62... Kc3 63. Qa5+ Kc4 64. Qc7+ Kb3 65. Qf7+ Kb4 66. Qe7+ (66. Qf4+ Kb3 $11) 66... Kb3 67. Qe3+ Ka2 68. Qe6+ Ka3 69. Qd6+ (69. Qe3+ Ka2 $11) 69... Ka4 70. Qa6+ (70. Qf4+ $2 b4 $19) 70... Kb4 71. Qd6+ Ka4 72. Qa6+ (72. Qf4+ $2 b4 $19) 72... Kb4 73. Qd6+ Ka4 $11) 1-0

[Event "85th Tata Steel Challengers 2023"]
[Site "Wijk aan Zee"]
[Date "2023.01.21"]
[Round "7.6"]
[White "Vaishali, Rameshbabu"]
[Black "Supi, Luis Paulo"]
[Result "1-0"]
[ECO "B94"]
[WhiteElo "2425"]
[BlackElo "2608"]
[Annotator "TA"]
[PlyCount "71"]
[EventDate "2023.01.10"]
[EventType "tourn"]
[EventCountry "NED"]
[SourceTitle "playchess.com"]
[Source "ChessBase"]
[SourceQuality "1"]
[TimeControl "40/6000+30:30/3000+30:900+30"]

{[%evp 11,71,10,21,2,4,-2,8,-18,0,0,0,0,0,0,0,-41,-21,-13,0,0,0,-143,-147,-125,-147,-127,0,0,0,0,0,0,0,0,0,-27,30,10,14,-29,-28,-25,-14,-66,-24,-20,0,-60,0,-22,-7,-5,-5,-17,0,0,34,34,37,37,237,237]} 1. e4 {[%emt 0:00:24]} c5 {[%emt 0:00:02]} 2. Nf3 {[%emt 0:00:05]} d6 {[%emt 0:00:04]} 3. d4 {[%emt 0:00:04]} cxd4 {[%emt 0:00:02]} 4. Nxd4 {[%emt 0:00:05]} Nf6 {[%emt 0:00:03]} 5. Nc3 {[%emt 0:00:04]} a6 {[%emt 0:00:02]} 6. Bg5 {[%emt 0:00:06]} Nbd7 {[%emt 0:00:20]} 7. g4 {[%emt 0:00:27] B94: Sicilian Najdorf: 6 Bg5 Nbd7.} b5 {[%emt 0:01:38] [#]} 8. Bg2 $146 {[%emt 0:03:05][%cal Oe4e5]} ({Predecessor:} 8. a3 Bb7 9. f3 e6 10. Qd2 Be7 11. h4 Qc7 12. O-O-O Nb6 13. Rg1 Nc4 14. Bxc4 Qxc4 {0-1 Okike,D (2170)-Bakhmatsky,V (2447) Titled Tuesday intern op 5th Nov blitz 2019 (2)}) 8... Bb7 {[%emt 0:00:37]} 9. Be3 {[%emt 0:05:41] The position is equal.} Rc8 {[%emt 0:08:08]} 10. g5 {[%emt 0:36:17]} Rxc3 $1 {[%emt 0:00:14]} 11. bxc3 {[%emt 0:00:02]} Nxe4 {[%emt 0:00:07]} 12. Qg4 {[%emt 0:01:17]} Ne5 {[%emt 0:12:30]} 13. Qh4 {[%emt 0:04:07]} (13. Qh3 $5 {[%cal Ra2a4]}) 13... Qa8 {[%emt 0:09:46]} 14. O-O $1 {[%emt 0:04:18]} Nxc3 {[%emt 0:15:28]} 15. Bxb7 {[%emt 0:00:55]} Qxb7 {[%emt 0:01:31]} 16. Rfe1 {[%emt 0:01:53] [#] Wards off Ne2+} (16. f4 $1 $11 Nc4 17. Rae1) 16... g6 $1 $17 {[%emt 0:22:55]} 17. f4 {[%emt 0:21:27]} Nc4 {[%emt 0:02:45] A dynamic duo of knights.} 18. f5 {[%emt 0:00:48]} Qe4 {[%emt 0:08:03]} (18... gxf5 $17 {Threatens to win with ...Ne5.} 19. Nxf5 Rg8) 19. Qh3 $1 $11 {[%emt 0:05:20] Hoping for Bf2.} Nxe3 {[%emt 0:02:07]} 20. Qxe3 {[%emt 0:00:22]} Qxe3+ {[%emt 0:00:46]} 21. Rxe3 {[%emt 0:00:02]} Nd5 {[%emt 0:01:03]} 22. Ra3 {[%emt 0:06:22]} Nc7 {[%emt 0:00:54]} 23. Rf1 {[%emt 0:01:04]} Rg8 {[%emt 0:08:01]} (23... gxf5 $142 24. Nxf5 Rg8) 24. Rc3 {[%emt 0:01:52]} (24. f6 $5 {[%cal Ra3c3]}) 24... Kd7 {[%emt 0:01:09]} 25. fxg6 {[%emt 0:02:35]} Bg7 {[%emt 0:01:12]} 26. Rd3 {[%emt 0:01:23]} fxg6 {[%emt 0:00:30]} 27. Rf7 {[%emt 0:00:54]} (27. c3 $11) 27... Ke8 {[%emt 0:01:37]} 28. Rf2 {[%emt 0:02:04]} Kd7 {[%emt 0:02:35]} 29. Rf7 {[%emt 0:00:25]} Ke8 {[%emt 0:02:46]} 30. Rf2 {[%emt 0:00:07]} h6 {[%emt 0:02:14]} 31. gxh6 {[%emt 0:03:24]} Bxh6 {[%emt 0:00:01]} 32. Nc6 {[%emt 0:00:17]} Bg5 {[%emt 0:03:13]} 33. Re2 {[%emt 0:00:36]} Kd7 {[%emt 0:00:40]} 34. Ne5+ {[%emt 0:00:08][%mdl 1024] White has compensation.} Kc8 {[%emt 0:00:14]} 35. Rg3 $1 {[%emt 0:01:43]} Bh4 {[%emt 0:01:34] [#]} (35... Bf6 $14 36. Nxg6 (36. Rxg6 Rf8 $11) 36... Rg7) 36. Nxg6 {[%emt 0:00:43][%mdl 64] Discovered Attack.   Weighted Error Value: White=0.14 (very precise) /Black=0.24 (precise)} 1-0

[Event "85th Tata Steel Challengers 2023"]
[Site "Wijk aan Zee"]
[Date "2023.01.21"]
[Round "7.7"]
[White "Adhiban, B.."]
[Black "Pechac, Jergus"]
[Result "0-1"]
[ECO "C65"]
[WhiteElo "2610"]
[BlackElo "2637"]
[Annotator "TA"]
[PlyCount "72"]
[EventDate "2023.01.10"]
[EventType "tourn"]
[EventCountry "NED"]
[SourceTitle "playchess.com"]
[Source "ChessBase"]
[SourceQuality "1"]
[TimeControl "40/6000+30:30/3000+30:900+30"]

{[%evp 9,72,19,18,11,15,7,12,14,14,7,2,5,0,4,0,0,0,-21,0,0,0,0,0,-120,-97,-117,-76,-80,-79,-87,-63,-60,-54,-84,-103,-104,-73,-89,-85,-155,-168,-310,-213,-277,-200,-218,-217,-440,-432,-486,-449,-536,-389,-357,-323,-729,-739,-733,-731,-1250,-1249,-1240,-1181,-1150,-1172]} 1. e4 {[%emt 0:00:06]} e5 {[%emt 0:00:25]} 2. Nf3 {[%emt 0:00:05]} Nc6 {[%emt 0:00:21]} 3. Bb5 {[%emt 0:00:06]} Nf6 {[%emt 0:00:44]} 4. d3 {[%emt 0:00:29]} Bc5 {[%emt 0:00:31]} 5. Bxc6 {[%emt 0:04:21]} dxc6 {[%emt 0:00:41]} 6. Nbd2 {[%emt 0:00:04] C65: Ruy Lopez: Berlin Defence (3...Nf6), unusual lines and 4 0-0 Bc5.} Nd7 {[%emt 0:01:25]} 7. Nc4 {[%emt 0:05:22]} f6 {[%emt 0:01:16]} 8. O-O {[%emt 0:07:09] [#] The position is equal. 8.c3 is more fashionable.} a5 $146 {[%emt 0:02:12]} ({Predecessor:} 8... O-O 9. Ne3 Rf7 10. Nf5 Bf8 11. Kh1 Nc5 12. g4 g6 13. Ne3 a5 14. a4 b5 {0-1 Abdusattorov,N (2713)-So,W (2760) Speed Chess Chess.com INT blitz 2022 (1.12)}) 9. d4 {[%emt 0:11:00]} exd4 {[%emt 0:01:51]} 10. Nxd4 {[%emt 0:00:08]} Qe7 {[%emt 0:01:17] Prevents Ne6} 11. Nf5 {[%emt 0:22:15]} Qf7 {[%emt 0:00:19]} 12. b3 {[%emt 0:05:09]} b5 {[%emt 0:11:18]} 13. Nd2 {[%emt 0:00:28]} g6 {[%emt 0:03:23]} 14. Nh6 {[%emt 0:08:11] Excellent horsemanship.} Qg7 {[%emt 0:00:46]} 15. Nf3 {[%emt 0:07:12][%cal Oe4e5]} Bb7 {[%emt 0:00:50]} 16. Ng4 {[%emt 0:10:05]} (16. Nd4 $1 $11 Qe7 17. Ndf5) 16... h5 $36 {[%emt 0:14:21][%mdl 2048] Keeping White busy.} 17. Ne3 {[%emt 0:00:24]} O-O-O {[%emt 0:00:06][%cal Of6f5]} 18. Bb2 {[%emt 0:03:13]} Rhe8 {[%emt 0:03:53]} (18... Bxe3 {feels hotter.} 19. fxe3 Nc5 20. Nd2 Nxe4 21. Nxe4 Rxd1 22. Raxd1 Qh6) 19. Nd2 {[%emt 0:00:17]} Bb6 {[%emt 0:03:03]} 20. Qf3 {[%emt 0:01:20]} Ne5 {[%emt 0:04:10]} 21. Bxe5 {[%emt 0:02:15]} Rxe5 {[%emt 0:00:08] White is now going downhill.} ({Much weaker is} 21... fxe5 $6 22. Qe2 $11) 22. Rad1 {[%emt 0:02:35]} Rde8 {[%emt 0:02:14][%cal Of6f5] Black is much more active. The white rooks are badly placed.} 23. Rfe1 {[%emt 0:02:17]} Kb8 {[%emt 0:03:18]} 24. h3 {[%emt 0:01:33] [#]} (24. Kf1 $142) 24... f5 $1 {[%emt 0:10:32][%mdl 512]} 25. Nef1 {[%emt 0:09:30]} (25. c4 $142) (25. a4 fxe4) 25... Qe7 {[%emt 0:05:47]} 26. Qg3 {[%emt 0:02:22][%cal Od2f3]} fxe4 {[%emt 0:00:11]} 27. Ne3 {[%emt 0:00:22]} Bc5 {[%emt 0:02:47]} 28. Qxg6 $2 {[%emt 0:01:05]} (28. Re2 {keeps fighting.}) 28... Rg5 $19 {[%emt 0:00:40]} 29. Qh6 {[%emt 0:00:07][%cal Od2e4] [#]} Reg8 $1 {[%emt 0:03:20] Dodges Nxe4. And now ...Bxe3 would win.} 30. Ndf1 {[%emt 0:00:03]} Qe5 {[%emt 0:11:39]} 31. h4 {[%emt 0:01:33]} R5g6 {[%emt 0:00:23]} 32. Qh7 {[%emt 0:00:12]} (32. Rd8+ Ka7 33. Qh7) 32... R6g7 {[%emt 0:00:21] Black is clearly winning.} 33. Qh6 {[%emt 0:00:17]} Ka7 {[%emt 0:01:16]} 34. Ng3 {[%emt 0:02:51]} Rxg3 {[%emt 0:00:20]} 35. fxg3 {[%emt 0:00:02]} Qxg3 {[%emt 0:00:10][%csl Gg8][%cal Rg3g2]} 36. Re2 {[%emt 0:00:41]} Rg6 {[%emt 0:00:06] Weighted Error Value: White=0.77/Black=0.19 (very precise)} 0-1

[Event "85th Tata Steel Challengers 2023"]
[Site "Wijk aan Zee"]
[Date "2023.01.22"]
[Round "8.1"]
[White "Mishra, Abhimanyu"]
[Black "Donchenko, Alexander"]
[Result "1/2-1/2"]
[ECO "D12"]
[WhiteElo "2559"]
[BlackElo "2627"]
[Annotator "TA"]
[PlyCount "57"]
[EventDate "2023.01.10"]
[EventType "tourn"]
[EventCountry "NED"]
[SourceTitle "playchess.com"]
[Source "ChessBase"]
[SourceQuality "1"]
[TimeControl "40/6000+30:30/3000+30:900+30"]

{[%evp 12,57,32,20,25,6,25,25,33,17,21,8,43,0,0,0,22,10,14,6,13,11,8,8,2,0,0,0,0,10,15,0,0,0,0,0,0,0,0,0,29,0,0,0,0,0,0,0]} 1. d4 {[%emt 0:00:02]} Nf6 {[%emt 0:00:13]} 2. c4 {[%emt 0:00:14]} c6 {[%emt 0:00:08]} 3. Nf3 {[%emt 0:00:54]} d5 {[%emt 0:00:09]} 4. e3 {[%emt 0:00:19]} Bf5 {[%emt 0:00:12]} 5. Nc3 {[%emt 0:00:36]} e6 {[%emt 0:00:13]} 6. Nh4 {[%emt 0:00:46]} Be4 {[%emt 0:00:09]} 7. f3 {[%emt 0:00:24]} Bg6 {[%emt 0:00:08] D12: Slav Defence: 3 Nf3 Nf6 4 e3 Bf5.} 8. Bd2 {[%emt 0:01:00]} Be7 $1 {[%emt 0:00:13] 8...Be7 is better than 8...Nbd7.} 9. Nxg6 {[%emt 0:00:42]} hxg6 {[%emt 0:00:07] White has an edge.} 10. Qc2 {[%emt 0:00:32]} Nbd7 {[%emt 0:00:17][%cal Bb8d7,Bd7b6,Bb6c4][%mdl 32]} 11. O-O-O {[%emt 0:00:53]} a6 {[%emt 0:00:15]} 12. Kb1 {[%emt 0:01:08]} dxc4 $1 {[%emt 0:00:30]} 13. Bxc4 {[%emt 0:00:39]} c5 {[%emt 0:00:14]} 14. g4 {[%emt 0:03:48] [#]} Nb6 $146 {[%emt 0:00:25] [#]} ({Predecessor:} 14... cxd4 15. exd4 Nb6 16. Bb3 Rc8 17. Qd3 Nbd5 18. Nxd5 Nxd5 19. f4 Qd7 20. f5 gxf5 21. gxf5 exf5 {1-0 Vidit,S (2724)-Nyzhnyk,I (2687) Saint Louis Fall-A 2022 (9)}) 15. dxc5 $1 {[%emt 0:03:06]} Nxc4 {[%emt 0:00:16]} 16. Qa4+ {[%emt 0:00:02]} Nd7 {[%emt 0:00:12] And now ...Nxd2+ would win.} 17. Qxc4 {[%emt 0:00:04]} Nxc5 {[%emt 0:00:10]} 18. Ne4 {[%emt 0:00:18]} Nxe4 {[%emt 0:00:21]} 19. Qxe4 {[%emt 0:00:29]} Qb6 {[%emt 0:00:08]} 20. Bc3 {[%emt 0:01:48]} Bf6 {[%emt 0:00:34]} 21. Bxf6 {[%emt 0:00:51]} gxf6 {[%emt 0:00:07]} 22. h4 {[%emt 0:00:09]} Rd8 $1 {[%emt 0:00:24]} 23. Rxd8+ {[%emt 0:06:54]} Qxd8 $11 {[%emt 0:00:13][%mdl 4096] Endgame KQR-KQR} 24. a3 {[%emt 0:02:17]} Kf8 {[%emt 0:10:35]} 25. h5 {[%emt 0:08:45]} Kg7 {[%emt 0:06:35]} 26. Rc1 {[%emt 0:06:34]} gxh5 {[%emt 0:07:46] The position is equal.} 27. gxh5 {[%emt 0:00:54]} (27. Qxb7 $2 {too greedy.} h4 28. Qxa6 Qd2 $19) 27... Rxh5 {[%emt 0:01:16]} 28. Qxb7 {[%emt 0:03:41]} Qd3+ {[%emt 0:02:37]} 29. Ka1 {[%emt 0:02:53] A rather calm draw.   Weighted Error Value: White=0.08 (flawless) /Black=0.03 (flawless)} 1/2-1/2